Workbook

Sheet DataFromWebApp_andOthers
A1: YearQtr | B1: Product1 | C1: Product2 | D1: Product3 | E1: GrowthOnlyInQ4 | F1: RandomOnlyInQ4 | G1: RandomAllButQ4 | H1: ConstantAllButQ3 | J1: RandomNumbers | K1: RandAt1Digit
A2: 2012Q1 | B2: 230.5410384 | C2: 903.4224862 | D2: 558.0873515 | E2: =IF(ISERROR(FIND("Q4",$A2)),0,ROW()*100) -> 0 | F2: =IF(ISERROR(FIND("Q4",$A2)),0,ROUND($J2*1000,0)) -> 0 | G2: =IF(ISERROR(FIND("Q4",$A2)),ROUND($J2*1000,0),0) -> 337 | H2: =IF(ISERROR(FIND("Q3",$A2)),100,0) -> 100 | J2: =RAND() -> 0.3367727153 | K2: =ROUND(J2,1) -> 0.3
A3: 2012Q2 | B3: 254.8675488 | C3: 1008.029886 | D3: 567.2794954 | E3: 0 | F3: =IF(ISERROR(FIND("Q4",$A3)),0,ROUND($J3*1000,0)) -> 0 | G3: =IF(ISERROR(FIND("Q4",$A3)),ROUND($J3*1000,0),0) -> 733 | H3: =IF(ISERROR(FIND("Q3",$A3)),100,0) -> 100 | J3: =RAND() -> 0.7328024284 | K3: =ROUND(J3,1) -> 0.7
A4: 2012Q3 | B4: 262.2927499 | C4: 964.5424723 | D4: 567.3527891 | E4: 0 | F4: =IF(ISERROR(FIND("Q4",$A4)),0,ROUND($J4*1000,0)) -> 0 | G4: =IF(ISERROR(FIND("Q4",$A4)),ROUND($J4*1000,0),0) -> 352 | H4: =IF(ISERROR(FIND("Q3",$A4)),100,0) -> 0 | J4: 0.3524753152 | K4: 0.4
A5: 2012Q4 | B5: 247.3934082 | C5: 893.2364447 | D5: 758.7017497 | E5: =IF(ISERROR(FIND("Q4",$A5)),0,ROW()*100) -> 500 | F5: =IF(ISERROR(FIND("Q4",$A5)),0,ROUND($J5*1000,0)) -> 730 | G5: =IF(ISERROR(FIND("Q4",$A5)),ROUND($J5*1000,0),0) -> 0 | H5: 100 | J5: 0.7296375314 | K5: 0.7
A6: 2013Q1 | B6: 277.428802 | C6: 936.2851563 | D6: 561.9706677 | E6: =IF(ISERROR(FIND("Q4",$A6)),0,ROW()*100) -> 0 | F6: =IF(ISERROR(FIND("Q4",$A6)),0,ROUND($J6*1000,0)) -> 0 | G6: =IF(ISERROR(FIND("Q4",$A6)),ROUND($J6*1000,0),0) -> 571 | H6: 100 | J6: 0.571171332 | K6: 0.6
A7: 2013Q2 | B7: 296.4416425 | C7: 1070.513914 | D7: 566.1745486 | E7: 0 | F7: =IF(ISERROR(FIND("Q4",$A7)),0,ROUND($J7*1000,0)) -> 0 | G7: =IF(ISERROR(FIND("Q4",$A7)),ROUND($J7*1000,0),0) -> 956 | H7: 100 | J7: 0.9559862509 | K7: 1
A8: 2013Q3 | B8: 309.5356641 | C8: 930.7970975 | D8: 574.0001244 | E8: 0 | F8: =IF(ISERROR(FIND("Q4",$A8)),0,ROUND($J8*1000,0)) -> 0 | G8: =IF(ISERROR(FIND("Q4",$A8)),ROUND($J8*1000,0),0) -> 455 | H8: 0 | J8: 0.4545946895 | K8: 0.5
A9: 2013Q4 | B9: 304.656201 | C9: 963.4984889 | D9: 764.1932829 | E9: 900 | F9: =IF(ISERROR(FIND("Q4",$A9)),0,ROUND($J9*1000,0)) -> 21 | G9: =IF(ISERROR(FIND("Q4",$A9)),ROUND($J9*1000,0),0) -> 0 | H9: 100 | J9: 0.02078786018 | K9: 0
A10: 2014Q1 | B10: 329.3996182 | C10: 904.3749555 | D10: 562.0440071 | E10: 0 | F10: =IF(ISERROR(FIND("Q4",$A10)),0,ROUND($J10*1000,0)) -> 0 | G10: =IF(ISERROR(FIND("Q4",$A10)),ROUND($J10*1000,0),0) -> 949 | H10: 100 | J10: 0.9490820791 | K10: 0.9
A11: 2014Q2 | B11: 345.2323459 | C11: 932.1001482 | D11: 565.1706046 | E11: 0 | F11: =IF(ISERROR(FIND("Q4",$A11)),0,ROUND($J11*1000,0)) -> 0 | G11: =IF(ISERROR(FIND("Q4",$A11)),ROUND($J11*1000,0),0) -> 220 | H11: 100 | J11: 0.2203180565 | K11: 0.2
A12: 2014Q3 | B12: 371.8942054 | C12: 998.7694783 | D12: 578.4197501 | E12: 0 | F12: =IF(ISERROR(FIND("Q4",$A12)),0,ROUND($J12*1000,0)) -> 0 | G12: =IF(ISERROR(FIND("Q4",$A12)),ROUND($J12*1000,0),0) -> 990 | H12: 0 | J12: 0.9901975059 | K12: 1
A13: 2014Q4 | B13: 379.8916249 | C13: 1107.15494 | D13: 763.2598401 | E13: 1300 | F13: =IF(ISERROR(FIND("Q4",$A13)),0,ROUND($J13*1000,0)) -> 23 | G13: =IF(ISERROR(FIND("Q4",$A13)),ROUND($J13*1000,0),0) -> 0 | H13: 100 | J13: 0.02265447264 | K13: 0
A14: 2015Q1 | B14: 410.127632 | C14: 1165.853907 | D14: 574.1640364 | E14: 0 | F14: =IF(ISERROR(FIND("Q4",$A14)),0,ROUND($J14*1000,0)) -> 0 | G14: =IF(ISERROR(FIND("Q4",$A14)),ROUND($J14*1000,0),0) -> 607 | H14: 100 | J14: 0.6071246125 | K14: 0.6
A15: 2015Q2 | B15: 369.7211 | C15: 890.9893048 | D15: 581.981105 | E15: 0 | F15: =IF(ISERROR(FIND("Q4",$A15)),0,ROUND($J15*1000,0)) -> 0 | G15: =IF(ISERROR(FIND("Q4",$A15)),ROUND($J15*1000,0),0) -> 278 | H15: 100 | J15: 0.2781710613 | K15: 0.3
A16: 2015Q3 | B16: 389.0069614 | C16: 966.4953666 | D16: 581.2959262 | E16: 0 | F16: =IF(ISERROR(FIND("Q4",$A16)),0,ROUND($J16*1000,0)) -> 0 | G16: =IF(ISERROR(FIND("Q4",$A16)),ROUND($J16*1000,0),0) -> 965 | H16: 0 | J16: 0.9653659538 | K16: 1
A17: 2015Q4 | B17: 421.1100523 | C17: 1019.093796 | D17: 783.7039157 | E17: 1700 | F17: =IF(ISERROR(FIND("Q4",$A17)),0,ROUND($J17*1000,0)) -> 583 | G17: =IF(ISERROR(FIND("Q4",$A17)),ROUND($J17*1000,0),0) -> 0 | H17: 100 | J17: 0.5827075717 | K17: 0.6
A18: 2016Q1 | B18: 456.3543107 | C18: 1030.116573 | D18: 581.5496451 | E18: 0 | F18: =IF(ISERROR(FIND("Q4",$A18)),0,ROUND($J18*1000,0)) -> 0 | G18: =IF(ISERROR(FIND("Q4",$A18)),ROUND($J18*1000,0),0) -> 779 | H18: 100 | J18: 0.7792089142 | K18: 0.8
A19: 2016Q2 | B19: 413.0496645 | C19: 889.6079454 | D19: 580.0397333 | E19: 0 | F19: =IF(ISERROR(FIND("Q4",$A19)),0,ROUND($J19*1000,0)) -> 0 | G19: =IF(ISERROR(FIND("Q4",$A19)),ROUND($J19*1000,0),0) -> 97 | H19: 100 | J19: 0.09653399581 | K19: 0.1
A20: 2016Q3 | B20: 442.5053011 | C20: 951.5840777 | D20: 582.1355627 | E20: 0 | F20: =IF(ISERROR(FIND("Q4",$A20)),0,ROUND($J20*1000,0)) -> 0 | G20: =IF(ISERROR(FIND("Q4",$A20)),ROUND($J20*1000,0),0) -> 512 | H20: 0 | J20: 0.5120575816 | K20: 0.5
A21: 2016Q4 | B21: 429.7482305 | C21: 918.3460996 | D21: 779.1890688 | E21: 2100 | F21: =IF(ISERROR(FIND("Q4",$A21)),0,ROUND($J21*1000,0)) -> 121 | G21: =IF(ISERROR(FIND("Q4",$A21)),ROUND($J21*1000,0),0) -> 0 | H21: 100 | J21: 0.1205704727 | K21: 0.1
A22: 2017Q1 | B22: 466.7559889 | C22: 896.438729 | D22: 585.1247352 | E22: 0 | F22: =IF(ISERROR(FIND("Q4",$A22)),0,ROUND($J22*1000,0)) -> 0 | G22: =IF(ISERROR(FIND("Q4",$A22)),ROUND($J22*1000,0),0) -> 175 | H22: 100 | J22: 0.1754413097 | K22: 0.2
A23: 2017Q2 | B23: 491.8477534 | C23: 1010.093702 | D23: 587.5096172 | E23: 0 | F23: =IF(ISERROR(FIND("Q4",$A23)),0,ROUND($J23*1000,0)) -> 0 | G23: =IF(ISERROR(FIND("Q4",$A23)),ROUND($J23*1000,0),0) -> 221 | H23: 100 | J23: 0.2205901828 | K23: 0.2
A24: 2017Q3 | B24: 462.3678903 | C24: 929.2943316 | D24: 577.849631 | E24: 0 | F24: =IF(ISERROR(FIND("Q4",$A24)),0,ROUND($J24*1000,0)) -> 0 | G24: =IF(ISERROR(FIND("Q4",$A24)),ROUND($J24*1000,0),0) -> 400 | H24: 0 | J24: 0.3996739298 | K24: 0.4
A25: 2017Q4 | B25: 472.177539 | C25: 875.8036211 | D25: 791.2812561 | E25: 2500 | F25: =IF(ISERROR(FIND("Q4",$A25)),0,ROUND($J25*1000,0)) -> 454 | G25: =IF(ISERROR(FIND("Q4",$A25)),ROUND($J25*1000,0),0) -> 0 | H25: 100 | J25: 0.4544557419 | K25: 0.5
A26: 2018Q1 | B26: 475.9991852 | C26: 870.5022003 | D26: 590.3504043 | E26: 0 | F26: =IF(ISERROR(FIND("Q4",$A26)),0,ROUND($J26*1000,0)) -> 0 | G26: =IF(ISERROR(FIND("Q4",$A26)),ROUND($J26*1000,0),0) -> 42 | H26: 100 | J26: 0.04177923969 | K26: 0
A27: 2018Q2 | B27: 503.6794824 | C27: 903.3006244 | D27: 581.5895666 | E27: 0 | F27: =IF(ISERROR(FIND("Q4",$A27)),0,ROUND($J27*1000,0)) -> 0 | G27: =IF(ISERROR(FIND("Q4",$A27)),ROUND($J27*1000,0),0) -> 90 | H27: 100 | J27: 0.08951563018 | K27: 0.1
A28: 2018Q3 | B28: 533.0387003 | C28: 958.0618853 | D28: 581.3489342 | E28: 0 | F28: =IF(ISERROR(FIND("Q4",$A28)),0,ROUND($J28*1000,0)) -> 0 | G28: =IF(ISERROR(FIND("Q4",$A28)),ROUND($J28*1000,0),0) -> 805 | H28: 0 | J28: 0.8046010001 | K28: 0.8
A29: 2018Q4 | B29: 552.7523789 | C29: 963.0853694 | D29: 798.6789238 | E29: 2900 | F29: =IF(ISERROR(FIND("Q4",$A29)),0,ROUND($J29*1000,0)) -> 617 | G29: =IF(ISERROR(FIND("Q4",$A29)),ROUND($J29*1000,0),0) -> 0 | H29: 100 | J29: 0.6173184679 | K29: 0.6
A30: 2019Q1 | B30: 550.206274 | C30: 1007.317818 | D30: 587.5479174 | E30: 0 | F30: =IF(ISERROR(FIND("Q4",$A30)),0,ROUND($J30*1000,0)) -> 0 | G30: =IF(ISERROR(FIND("Q4",$A30)),ROUND($J30*1000,0),0) -> 428 | H30: 100 | J30: 0.4283174228 | K30: 0.4
A31: 2019Q2 | B31: 571.6731232 | C31: 865.6816506 | D31: 597.5501857 | E31: 0 | F31: =IF(ISERROR(FIND("Q4",$A31)),0,ROUND($J31*1000,0)) -> 0 | G31: =IF(ISERROR(FIND("Q4",$A31)),ROUND($J31*1000,0),0) -> 952 | H31: 100 | J31: 0.9524156729 | K31: 1
A32: 2019Q3 | B32: 553.2460795 | C32: 980.5694482 | D32: 592.159618 | E32: 0 | F32: =IF(ISERROR(FIND("Q4",$A32)),0,ROUND($J32*1000,0)) -> 0 | G32: =IF(ISERROR(FIND("Q4",$A32)),ROUND($J32*1000,0),0) -> 817 | H32: 0 | J32: 0.8166875001 | K32: 0.8
A33: 2019Q4 | B33: 585.4822053 | C33: 909.9435984 | D33: 791.9740268 | E33: 3300 | F33: =IF(ISERROR(FIND("Q4",$A33)),0,ROUND($J33*1000,0)) -> 755 | G33: =IF(ISERROR(FIND("Q4",$A33)),ROUND($J33*1000,0),0) -> 0 | H33: 100 | J33: 0.7554520441 | K33: 0.8
A34: 2020Q1 | B34: 607.144588 | C34: 987.6308598 | D34: 585.4563988 | E34: 0 | F34: =IF(ISERROR(FIND("Q4",$A34)),0,ROUND($J34*1000,0)) -> 0 | G34: =IF(ISERROR(FIND("Q4",$A34)),ROUND($J34*1000,0),0) -> 992 | H34: 100 | J34: 0.9923766656 | K34: 1
A35: 2020Q2 | B35: 615.9226892 | C35: 1223.289155 | D35: 572.740511 | E35: 0 | F35: =IF(ISERROR(FIND("Q4",$A35)),0,ROUND($J35*1000,0)) -> 0 | G35: =IF(ISERROR(FIND("Q4",$A35)),ROUND($J35*1000,0),0) -> 954 | H35: 100 | J35: 0.9542235096 | K35: 1
A36: 2020Q3 | B36: 525.5210457 | C36: 780.9116748 | D36: 590.2510335 | E36: 0 | F36: =IF(ISERROR(FIND("Q4",$A36)),0,ROUND($J36*1000,0)) -> 0 | G36: =IF(ISERROR(FIND("Q4",$A36)),ROUND($J36*1000,0),0) -> 812 | H36: 0 | J36: 0.8115785105 | K36: 0.8
A37: 2020Q4 | B37: 592.2877206 | C37: 932.3098524 | D37: 798.7362428 | E37: 3700 | F37: =IF(ISERROR(FIND("Q4",$A37)),0,ROUND($J37*1000,0)) -> 35 | G37: =IF(ISERROR(FIND("Q4",$A37)),ROUND($J37*1000,0),0) -> 0 | H37: 100 | J37: 0.03488614896 | K37: 0
A38: 2021Q1 | B38: 565.6999276 | C38: 820.4170607 | D38: 598.0502852 | E38: 0 | F38: =IF(ISERROR(FIND("Q4",$A38)),0,ROUND($J38*1000,0)) -> 0 | G38: =IF(ISERROR(FIND("Q4",$A38)),ROUND($J38*1000,0),0) -> 942 | H38: 100 | J38: 0.9424441945 | K38: 0.9
A39: 2021Q2 | B39: 584.8102157 | C39: 623.125894 | D39: 598.1650678 | E39: 0 | F39: =IF(ISERROR(FIND("Q4",$A39)),0,ROUND($J39*1000,0)) -> 0 | G39: =IF(ISERROR(FIND("Q4",$A39)),ROUND($J39*1000,0),0) -> 586 | H39: 100 | J39: 0.585786983 | K39: 0.6
A40: 2021Q3 | B40: 588.5104816 | C40: 718.5827666 | D40: 590.1810337 | E40: 0 | F40: =IF(ISERROR(FIND("Q4",$A40)),0,ROUND($J40*1000,0)) -> 0 | G40: =IF(ISERROR(FIND("Q4",$A40)),ROUND($J40*1000,0),0) -> 449 | H40: 0 | J40: 0.4493701775 | K40: 0.4
A41: 2021Q4 | B41: 617.3413469 | C41: 655.4944445 | D41: 808.8196308 | E41: 4100 | F41: =IF(ISERROR(FIND("Q4",$A41)),0,ROUND($J41*1000,0)) -> 361 | G41: =IF(ISERROR(FIND("Q4",$A41)),ROUND($J41*1000,0),0) -> 0 | H41: 100 | J41: 0.360632309 | K41: 0.4
A42: 2022Q1 | B42: 582.1253768 | C42: 587.471985 | D42: 591.1340366 | E42: 0 | F42: =IF(ISERROR(FIND("Q4",$A42)),0,ROUND($J42*1000,0)) -> 0 | G42: =IF(ISERROR(FIND("Q4",$A42)),ROUND($J42*1000,0),0) -> 987 | H42: 100 | J42: 0.9872520236 | K42: 1
A43: 2022Q2 | B43: 589.0217229 | C43: 510.4951515 | D43: 592.6213906 | E43: 0 | F43: =IF(ISERROR(FIND("Q4",$A43)),0,ROUND($J43*1000,0)) -> 0 | G43: =IF(ISERROR(FIND("Q4",$A43)),ROUND($J43*1000,0),0) -> 262 | H43: 100 | J43: 0.2624349601 | K43: 0.3
A44: 2022Q3 | B44: 680.9459805 | C44: 753.6556639 | D44: 600.4177702 | E44: 0 | F44: =IF(ISERROR(FIND("Q4",$A44)),0,ROUND($J44*1000,0)) -> 0 | G44: =IF(ISERROR(FIND("Q4",$A44)),ROUND($J44*1000,0),0) -> 317 | H44: 0 | J44: 0.3172854306 | K44: 0.3
A46: # with Demand | B46: =COUNTIF(B2:B44,">0") -> 43 | C46: =COUNTIF(C2:C44,">0") -> 43 | D46: =COUNTIF(D2:D44,">0") -> 43 | E46: =COUNTIF(E2:E44,">0") -> 10 | F46: =COUNTIF(F2:F44,">0") -> 10 | G46: =COUNTIF(G2:G44,">0") -> 33 | H46: =COUNTIF(H2:H44,">0") -> 32
A47: # not Missing | B47: =COUNT(B2:B44) -> 43 | C47: =COUNT(C2:C44) -> 43 | D47: =COUNT(D2:D44) -> 43 | E47: =COUNT(E2:E44) -> 43 | F47: =COUNT(F2:F44) -> 43 | G47: =COUNT(G2:G44) -> 43 | H47: =COUNT(H2:H44) -> 43
A48: ADI | B48: =B47/B46 -> 1 | C48: =C47/C46 -> 1 | D48: =D47/D46 -> 1 | E48: =E47/E46 -> 4.3 | F48: =F47/F46 -> 4.3 | G48: =G47/G46 -> 1.303030303 | H48: =H47/H46 -> 1.34375
A49: stdDev | B49: =STDEV(B2:B44) -> 122.4081307 | C49: =STDEV(C2:C44) -> 140.0155817 | D49: =STDEV(D2:D44) -> 87.54324843 | E49: =STDEV(E2:E44) -> 1131.767207 | F49: =STDEV(F2:F44) -> 210.3514014 | G49: =STDEV(G2:G44) -> 370.5235768 | H49: =STDEV(H2:H44) -> 44.14814484
A50: mean | B50: =AVERAGE(B2:B44) -> 458.3664139 | C50: =AVERAGE(C2:C44) -> 911.8206982 | D50: =AVERAGE(D2:D44) -> 628.37794 | E50: =AVERAGE(E2:E44) -> 534.8837209 | F50: =AVERAGE(F2:F44) -> 86.04651163 | G50: =AVERAGE(G2:G44) -> 442.6046512 | H50: =AVERAGE(H2:H44) -> 74.41860465
A51: CV_sq | B51: =(B49/B50)^2 -> 0.07131731033 | C51: =(C49/C50)^2 -> 0.02357945948 | D51: =(D49/D50)^2 -> 0.01940901319 | E51: =(E49/E50)^2 -> 4.477086146 | F51: =(F49/F50)^2 -> 5.976188431 | G51: =(G49/G50)^2 -> 0.700809126 | H51: =(H49/H50)^2 -> 0.3519345238
A52: Frequency | B52: =IF(B48<1.32,"Frequent","Infrequent") -> Frequent | C52: =IF(C48<1.32,"Frequent","Infrequent") -> Frequent | D52: =IF(D48<1.32,"Frequent","Infrequent") -> Frequent | E52: =IF(E48<1.32,"Frequent","Infrequent") -> Infrequent | F52: =IF(F48<1.32,"Frequent","Infrequent") -> Infrequent | G52: =IF(G48<1.32,"Frequent","Infrequent") -> Frequent | H52: =IF(H48<1.32,"Frequent","Infrequent") -> Infrequent
A53: Variability | B53: =IF(B51<0.49,"Low","High") -> Low | C53: =IF(C51<0.49,"Low","High") -> Low | D53: =IF(D51<0.49,"Low","High") -> Low | E53: =IF(E51<0.49,"Low","High") -> High | F53: =IF(F51<0.49,"Low","High") -> High | G53: =IF(G51<0.49,"Low","High") -> High | H53: =IF(H51<0.49,"Low","High") -> Low
A54: Category | B54: =IF(B52="Frequent",IF(B53="Low","SMOOTH","ERRATIC"),IF(B52="Infrequent",IF(B53="Low","INTERMITTENT", "LUMPY"))) -> SMOOTH | C54: =IF(C52="Frequent",IF(C53="Low","SMOOTH","ERRATIC"),IF(C52="Infrequent",IF(C53="Low","INTERMITTENT", "LUMPY"))) -> SMOOTH | D54: =IF(D52="Frequent",IF(D53="Low","SMOOTH","ERRATIC"),IF(D52="Infrequent",IF(D53="Low","INTERMITTENT", "LUMPY"))) -> SMOOTH | E54: =IF(E52="Frequent",IF(E53="Low","SMOOTH","ERRATIC"),IF(E52="Infrequent",IF(E53="Low","INTERMITTENT", "LUMPY"))) -> LUMPY | F54: =IF(F52="Frequent",IF(F53="Low","SMOOTH","ERRATIC"),IF(F52="Infrequent",IF(F53="Low","INTERMITTENT", "LUMPY"))) -> LUMPY | G54: =IF(G52="Frequent",IF(G53="Low","SMOOTH","ERRATIC"),IF(G52="Infrequent",IF(G53="Low","INTERMITTENT", "LUMPY"))) -> ERRATIC | H54: =IF(H52="Frequent",IF(H53="Low","SMOOTH","ERRATIC"),IF(H52="Infrequent",IF(H53="Low","INTERMITTENT", "LUMPY"))) -> INTERMITTENT
